Workbook

Sheet пример
A1: ДАНО: | J1: НАДО: | O1: при помощи SQL:
A2: Клиент | B2: Дата начала сделки | C2: Дата окончания сделки 1 | D2: Дата окончания сделки 2 | E2: Срочность сделки 1 | F2: Срочность сделки 2 | G2: Валюта договора | H2: Сумма сделки в валюте договора | J2: Клиент | K2: Валюта договора | L2: Средневзвешенная срочность по сумме сделки 1 | M2: Средневзвешенная срочность по сумме сделки 2 | O2: Клиент | P2: Валюта договора | Q2: Средневзвешенная срочность по сумме сделки 1 | R2: Средневзвешенная срочность по сумме сделки 2
A3: ООО БЕРЛИН | B3: 2014-06-03 | C3: 2015-06-04 | D3: 2015-05-04 | E3: =C3-B3 -> 366 | F3: =D3-B3 -> 335 | G3: USD | H3: 807015.04 | J3: ООО БЕРЛИН | K3: RUR | L3: =SUMPRODUCT(H4:H6,E4:E6)/SUM(H4:H6) -> 155.5111774 | M3: =SUMPRODUCT(H4:H6,F4:F6)/SUM(H4:H6) -> 179.0342986 | O3: ООО БЕРЛИН | P3: RUR | Q3: 156 | R3: 179
A4: ООО БЕРЛИН | B4: 2010-02-09 | C4: 2011-02-09 | D4: 2011-06-09 | E4: =C4-B4 -> 365 | F4: =D4-B4 -> 485 | G4: RUR | H4: 7314640 | J4: ООО БЕРЛИН | K4: USD | L4: =E4 -> 365 | M4: =F4 -> 485 | O4: ООО БЕРЛИН | P4: USD | Q4: 366 | R4: 335
A5: ООО БЕРЛИН | B5: 2010-09-30 | C5: 2010-12-30 | D5: 2010-12-30 | E5: 91 | F5: 91 | G5: RUR | H5: 17000000 | J5: ООО МОСКВА | K5: EUR | L5: =SUMPRODUCT($H$15:$H$16,E15:E16)/SUM(H15:H16) -> 120 | M5: =SUMPRODUCT($H$15:$H$16,F15:F16)/SUM(H15:H16) -> 151 | O5: ООО ЛОНДОН | P5: EUR | Q5: 585 | R5: 581
A6: ООО БЕРЛИН | B6: 2010-09-30 | C6: 2011-01-30 | D6: 2011-01-30 | E6: 122 | F6: =D6-B6 -> 122 | G6: RUR | H6: 13000000 | J6: ООО МОСКВА | K6: RUR | L6: =SUMPRODUCT($H$7:$H$16,E7:E16)/SUM($H$7:$H$16) -> 159.5423729 | M6: =SUMPRODUCT($H$7:$H$16,F7:F16)/SUM($H$7:$H$16) -> 171.0084746 | O6: ООО ЛОНДОН | P6: RUR | Q6: 360 | R6: 508
A7: ООО МОСКВА | B7: 2010-10-01 | C7: 2011-01-01 | D7: 2011-01-11 | E7: 92 | F7: 102 | G7: USD | H7: 6000000 | J7: ООО МОСКВА | K7: USD | L7: =E7 -> 92 | M7: =F7 -> 102 | O7: ООО ЛОНДОН | P7: USD | Q7: 365 | R7: 366
A8: ООО МОСКВА | B8: 2010-10-04 | C8: 2011-02-04 | D8: 2011-02-04 | E8: 123 | F8: 123 | G8: RUR | H8: 2000000 | O8: ООО МОСКВА | P8: EUR | Q8: 120 | R8: 151
A9: ООО МОСКВА | B9: 2010-12-27 | C9: 2011-03-27 | D9: 2011-05-27 | E9: 90 | F9: 151 | G9: RUR | H9: 3500000 | O9: ООО МОСКВА | P9: RUR | Q9: 176 | R9: 184
A10: ООО МОСКВА | B10: 2010-12-27 | C10: 2011-03-27 | D10: 2011-03-27 | E10: 90 | F10: 90 | G10: RUR | H10: 13500000 | O10: ООО МОСКВА | P10: USD | Q10: 92 | R10: 102
A11: ООО МОСКВА | B11: 2011-01-11 | C11: 2011-04-11 | D11: 2011-04-11 | E11: 90 | F11: 90 | G11: RUR | H11: 6000000 | O11: ООО ПАРИЖ | P11: EUR | Q11: 275 | R11: 275
A12: ООО МОСКВА | B12: 2011-01-24 | C12: 2011-05-24 | D12: 2011-06-24 | E12: 120 | F12: 151 | G12: RUR | H12: 5000000 | O12: ООО ПАРИЖ | P12: RUR | Q12: 577 | R12: 581
A13: ООО МОСКВА | B13: 2011-02-01 | C13: 2011-06-01 | D13: 2011-06-01 | E13: 120 | F13: 120 | G13: RUR | H13: 2000000
A14: ООО МОСКВА | B14: 2011-02-03 | C14: 2012-02-03 | D14: 2012-02-03 | E14: 365 | F14: 365 | G14: RUR | H14: 13000000
A15: ООО МОСКВА | B15: 2011-01-24 | C15: 2011-05-24 | D15: 2011-06-24 | E15: =C15-B15 -> 120 | F15: =D15-B15 -> 151 | G15: EUR | H15: 5000000
A16: ООО МОСКВА | B16: 2011-01-24 | C16: 2011-05-24 | D16: 2011-06-24 | E16: =C16-B16 -> 120 | F16: =D16-B16 -> 151 | G16: EUR | H16: 3000000
A17: ООО ПАРИЖ | B17: 2011-03-24 | C17: 2011-06-24 | D17: 2011-06-24 | E17: 92 | F17: 92 | G17: RUR | H17: 3500000
A18: ООО ПАРИЖ | B18: 2011-03-24 | C18: 2011-06-24 | D18: 2011-07-24 | E18: 92 | F18: 122 | G18: RUR | H18: 3500000
A19: ООО ПАРИЖ | B19: 2011-03-24 | C19: 2011-06-24 | D19: 2011-06-24 | E19: 92 | F19: 92 | G19: RUR | H19: 3000000
A20: ООО ПАРИЖ | B20: 2011-03-25 | C20: 2011-06-25 | D20: 2011-06-27 | E20: 92 | F20: 94 | G20: RUR | H20: 4000000
A21: ООО ПАРИЖ | B21: 2011-03-25 | C21: 2011-06-25 | D21: 2011-06-27 | E21: 92 | F21: 94 | G21: RUR | H21: 3000000
A22: ООО ПАРИЖ | B22: 2011-04-06 | C22: 2011-07-06 | D22: 2011-07-06 | E22: 91 | F22: 91 | G22: RUR | H22: 3000000
A23: ООО ПАРИЖ | B23: 2011-04-06 | C23: 2011-07-06 | D23: 2011-07-06 | E23: 91 | F23: 91 | G23: RUR | H23: 3000000
A24: ООО ПАРИЖ | B24: 2011-05-27 | C24: 2011-08-27 | D24: 2011-08-29 | E24: 92 | F24: 94 | G24: RUR | H24: 13000000
A25: ООО ПАРИЖ | B25: 2011-07-07 | C25: 2015-06-16 | D25: 2015-06-16 | E25: 1440 | F25: 1440 | G25: RUR | H25: 24914019.75
A26: ООО ПАРИЖ | B26: 2010-08-12 | C26: 2011-05-12 | D26: 2011-05-12 | E26: 273 | F26: 273 | G26: EUR | H26: 3000000
A27: ООО ПАРИЖ | B27: 2010-02-10 | C27: 2010-07-31 | D27: 2010-08-02 | E27: 171 | F27: 173 | G27: RUR | H27: 8500000
A28: ООО ПАРИЖ | B28: 2011-12-05 | C28: 2012-11-25 | D28: 2012-12-26 | E28: 356 | F28: 387 | G28: RUR | H28: 2565919.53
A29: ООО ПАРИЖ | B29: 2011-12-20 | C29: 2012-09-20 | D29: 2012-09-20 | E29: 275 | F29: 275 | G29: EUR | H29: 10000000
A30: ООО ЛОНДОН | B30: 2012-08-16 | C30: 2014-02-16 | D30: 2014-02-16 | E30: 549 | F30: 549 | G30: EUR | H30: 3700000
A31: ООО ЛОНДОН | B31: 2012-08-29 | C31: 2014-02-28 | D31: 2014-02-28 | E31: 548 | F31: 548 | G31: EUR | H31: 2400000
A32: ООО ЛОНДОН | B32: 2012-09-04 | C32: 2014-03-04 | D32: 2014-03-04 | E32: 546 | F32: 546 | G32: EUR | H32: 1400000
A33: ООО ЛОНДОН | B33: 2012-09-12 | C33: 2014-03-12 | D33: 2014-04-12 | E33: 546 | F33: 577 | G33: EUR | H33: 1320000
A34: ООО ЛОНДОН | B34: 2013-01-23 | C34: 2014-01-17 | D34: 2014-01-17 | E34: 359 | F34: 359 | G34: RUR | H34: 4341200.28
A35: ООО ЛОНДОН | B35: 2013-07-04 | C35: 2014-07-04 | D35: 2014-07-04 | E35: 365 | F35: 365 | G35: EUR | H35: 500000
A36: ООО ЛОНДОН | B36: 2013-08-08 | C36: 2014-08-08 | D36: 2014-08-08 | E36: 365 | F36: 365 | G36: EUR | H36: 500000
A37: ООО ЛОНДОН | B37: 2013-08-29 | C37: 2015-09-18 | D37: 2015-10-18 | E37: 750 | F37: 780 | G37: EUR | H37: 2000000
A38: ООО ЛОНДОН | B38: 2013-09-25 | C38: 2015-09-25 | D38: 2015-09-25 | E38: 730 | F38: 730 | G38: EUR | H38: 2000000
A39: ООО ЛОНДОН | B39: 2013-09-30 | C39: 2015-09-30 | D39: 2015-01-30 | E39: 730 | F39: 487 | G39: EUR | H39: 1000000
A40: ООО ЛОНДОН | B40: 2014-04-30 | C40: 2015-04-30 | D40: 2015-05-01 | E40: 365 | F40: 366 | G40: USD | H40: 320275.24
A41: ООО ЛОНДОН | B41: 2014-01-29 | C41: 2015-07-29 | D41: 2015-07-29 | E41: 546 | F41: 546 | G41: EUR | H41: 2000000
A42: ООО ЛОНДОН | B42: 2014-02-06 | C42: 2015-08-06 | D42: 2015-08-06 | E42: 546 | F42: 546 | G42: EUR | H42: 1500000
A43: ООО ЛОНДОН | B43: 2014-02-07 | C43: 2015-08-07 | D43: 2015-08-07 | E43: 546 | F43: 546 | G43: EUR | H43: 2000000
A44: ООО ЛОНДОН | B44: 2014-02-10 | C44: 2015-02-05 | D44: 2015-08-05 | E44: 360 | F44: 541 | G44: RUR | H44: 26795457.58
A45: ООО ЛОНДОН | B45: 2014-02-20 | C45: 2015-10-18 | D45: 2015-10-18 | E45: 605 | F45: 605 | G45: EUR | H45: 1200000
A46: ООО ЛОНДОН | B46: 2014-02-25 | C46: 2015-10-18 | D46: 2015-10-18 | E46: 600 | F46: 600 | G46: EUR | H46: 730000
A47: ООО ЛОНДОН | B47: 2014-03-06 | C47: 2015-09-18 | D47: 2015-10-18 | E47: 561 | F47: 591 | G47: EUR | H47: 700000
A48: ООО ЛОНДОН | B48: 2014-05-23 | C48: 2015-05-23 | D48: 2015-05-26 | E48: 365 | F48: 368 | G48: RUR | H48: 1587229.51
A49: ООО ЛОНДОН | B49: 2014-03-17 | C49: 2015-09-17 | D49: 2015-10-17 | E49: 549 | F49: 579 | G49: EUR | H49: 870000
